Workbook

Sheet Vægtfylde
B1: Temperaturens indflydelse på syrens vægtfylden (fuldt opladt). Når temperaturen falder stiger vægtfylden
N2: =CONCATENATE(R4,R5,O5) -> Vfnominel ved 30 °C 1,29 Kg/L | R2: =IF(R5=K3,"",IF(R5<K3,"Batteriet trænger til opladning",IF(R3>K3,"",""))) -> 
B3: Vægtfylde | E3: 1.332 | F3: 1.325 | G3: 1.318 | H3: 1.311 | I3: 1.304 | J3: 1.297 | K3: 1.29 | L3: 1.283 | M3: Kg/L
B4: Syre temperatur | E4: -30 | F4: -20 | G4: -10 | H4: 0 | I4: 10 | J4: 20 | K4: 30 | L4: 40 | M4: °C | N4: Vfmålt | O4: ved | P4: Tmålt | R4: Vfnominel ved 30 °C | T4: Korrektions faktor K1
B5: Korrektionsberegning af vægtfylden som funktion af syre temperaturen | I5: Vfnominel = | K5: Vfmålt + (K1*(Tmålt - 30 °C)) = | N5: 1.29 | O5: Kg/L | P5: 30 | Q5: °C | R5: =$N$5+($T$5*($P$5-30)) -> 1.29 | S5: Kg/L | T5: 0.0007 | U5: Kg/L/°C
B6: Vfnominel er den vægtfylde, cellen ville have haft, hvis temperaturen havde været 30 °C
W7: Batteri type
W8: 2
W9: 6
W10: 12
W11: 24
W12: =CONCATENATE(B4,M4) -> Syre temperatur °C
W13: =CONCATENATE(B3,M3) -> Vægtfylde Kg/L
H31: If you want the password to the spreadsheet, send me an email.
H33: Udarbejdet af Jørgen Walter ©
H37: www.walter-lystfisker.dk
H39: COPYRIGHT © 2014
B40: walter | U40: Reg. No. 1275
C43: http://conversion1.smartequip.net/manufacturers/TOUCAN/OPS_DK/MA0272-01_PAGE_64.swf
C45: http://www.campingferie.dk/2004Design/forumThread.asp?postGuid=714741

Sheet Kapacitet
B1: Temperaturens indflydelse på batteriets kapacitet. Når temperaturen falder, bliver batteriets kapacitet mindre
B2: Årsagen er, at viskositeten ved minus grader er meget højere end ved plus grader. Diffusionen i syren bliver træg både ved afladning og opladning. Derved falder batteriets kapacitet
B4: Batteriets kapacitet | E4: 0.35 | F4: 0.5 | G4: 0.7 | H4: 0.8 | I4: 0.9 | J4: 0.95 | K4: 1 | L4: %
B5: Syre temperatur | E5: -30 | F5: -20 | G5: -10 | H5: 0 | I5: 10 | J5: 20 | K5: 30 | L5: °C
W12: =CONCATENATE(B5,L5) -> Syre temperatur °C
W13: =CONCATENATE(B4,L4) -> Batteriets kapacitet %
H31: If you want the password to the spreadsheet, send me an email.
H33: Udarbejdet af Jørgen Walter ©
H37: www.walter-lystfisker.dk
H39: COPYRIGHT © 2014
B40: walter | U40: Reg. No. 1275

Sheet Ladespænding
B1: Temperaturens indflydelse på ladespændingen. Når temperaturen falder skal ladespændingen stige
B2: Indsæt nominel batterispænding fra listen | G2: 2 | H2: Volt | I2: =IF($G$2=6,3,IF($G$2=12,6,IF($G$2=24,12,1))) -> 1 | J2: Celle(r) i batteriet | N2: =CONCATENATE(B3," ",N5,O5,"ved ",B4," ",P5,Q5) -> Ladespænding per celle 2,4 Volt ved Syre temperatur 30 °C
B3: =+N3 -> Ladespænding per celle | E3: =$I$2*2.64 -> 2.64 | F3: =$I$2*2.6 -> 2.6 | G3: =$I$2*2.56 -> 2.56 | H3: =$I$2*2.52 -> 2.52 | I3: =$I$2*2.48 -> 2.48 | J3: =$I$2*2.44 -> 2.44 | K3: =$I$2*2.4 -> 2.4 | L3: =$I$2*2.36 -> 2.36 | M3: volt | N3: =IF($G$2=2,"Ladespænding per celle",IF($G$2=6,"Ladespænding for 6 V batteri",IF($G$2=12,"Ladespænding for 12 V batteri",IF($G$2=24,"Ladespænding for 24 V batteri","")))) -> Ladespænding per celle
B4: Syre temperatur | E4: -30 | F4: -20 | G4: -10 | H4: 0 | I4: 10 | J4: 20 | K4: 30 | L4: 40 | M4: °C | N4: Ladespænding ved | P4: målt temperatur | R4: Volt/Celle ved 30 °C | T4: Korrektions faktor K3
B5: Korrektionsberegning af ladespændingen som funktion af syre temperaturen | I5: Vkorrektion | K5: 2,4 + (K3*(30 °C-Tmålt)) = | N5: =($R$5+($T$5*(30-$P$5)))*$I$2 -> 2.4 | O5: Volt | P5: 30 | Q5: °C | R5: 2.4 | S5: Volt | T5: 0.004 | U5: V/°C
W6: Batteri type
W7: 2
W8: 6
W9: 12
W10: 24
W11: =CONCATENATE(B4,M4) -> Syre temperatur °C
H31: If you want the password to the spreadsheet, send me an email.
H33: Udarbejdet af Jørgen Walter ©
H37: www.walter-lystfisker.dk
H39: COPYRIGHT © 2014
B40: walter | U40: Reg. No. 1275

Sheet Cellespænding
B1: Temperaturens indflydelse på cellespændingen (fuldt opladt). Når temperaturen falder stiger spændingen
B2: Indsæt nominel cellespænding fra listen | G2: 2 | H2: Volt | I2: =IF(G2=6,3,IF(G2=12,6,IF(G2=24,12,1))) -> 1 | J2: Celle(r) i dit batteri | N2: =CONCATENATE(B3," ",N5,O5,"ved ",B4," ",P5,Q5) -> Cellespænding 2,13 Volt ved Syre temperatur 30 °C
B3: =+N3 -> Cellespænding | E3: =$I$2*2.172 -> 2.172 | F3: =$I$2*2.165 -> 2.165 | G3: =$I$2*2.158 -> 2.158 | H3: =$I$2*2.151 -> 2.151 | I3: =$I$2*2.144 -> 2.144 | J3: =$I$2*2.137 -> 2.137 | K3: =$I$2*2.13 -> 2.13 | L3: =$I$2*2.123 -> 2.123 | M3: volt | N3: =IF($G$2=2,"Cellespænding",IF($G$2=6,"Cellespænding for 6 V batteri",IF($G$2=12,"Cellespænding for 12 V batteri",IF($G$2=24,"Cellespænding for 24 V batteri","")))) -> Cellespænding
B4: Syre temperatur | E4: -30 | F4: -20 | G4: -10 | H4: 0 | I4: 10 | J4: 20 | K4: 30 | L4: 40 | M4: °C | N4: Cellespænding ved | P4: målt temperatur | R4: =+N3 -> Cellespænding | T4: Korrektions faktor K4
B5: Korrektionsberegning af cellespændigen som funktion af syre temperaturen | I5: Vkorrektion = | K5: 2,13 + (K4*(Tmålt - 30 °)) = | N5: =($R$5+($T$5*(30-$P$5)))*$I$2 -> 2.13 | O5: Volt | P5: 30 | Q5: °C | R5: 2.13 | S5: Volt | T5: 0.0007 | U5: V/°C
W6: Batteri type
W7: 2
W8: 6
W9: 12
W10: 24
W11: =CONCATENATE(B4,M4) -> Syre temperatur °C
H31: If you want the password to the spreadsheet, send me an email.
H33: Udarbejdet af Jørgen Walter ©
H37: www.walter-lystfisker.dk
H39: COPYRIGHT © 2014
B40: walter | U40: Reg. No. 1275

Sheet Info
B1: Peukerts formel beregner kan benyttes til at forudsige en ny afladetid ved en anden afladestrøm for et batteri med kendt batterikapacitet
B2: Hvis et batteri er opgivet til 100 Ah₅, betyder det, at batteriet i 20 timer kan afgive 5 A (5A*20h = 100Ah). Afladetiden er fastsat til 20 timer (C20) og spændingen er faldet til 10,5 V ved 25 °C for et 12 volts batteri.
B3: Skal batteriet yde en større strøm end den nominelle (5 A), på en kortere tid end 20 timer, så har batteriet ikke længere den anvendelige kapacitet [Ah] til rådighed. Værdien falder progressivt med tiden.
B4: Til beregning af Batterikapacitet C = [Ah], afladestrøm I = [A] og afladetiden H = [timer], anvendes den modificerede Peukerts lov, hvor k er Peukerts konstant, som er afhængig af batteritype:
B6: Følgende definitioner anvendes | F6: Følgende k værdier anvendes
B7: C = Batterikapacitet [A*h = Coulomb] | F7: AGM fra 1,05 til 1,15 | I7: Absorbed Glass Mat | L7: Default data input for brugeren
B8: H = Afladetid [timer] | F8: GEL fra 1,1 til 1,25 | I8: Gele
B9: k = Peukert konstant | F9: VRLA fra 1,2 til 1,6 | I9: Vedligeholdelsesfrit batteri
B10: I = Afladestrøm [A] | F10: Bly/Syre fra 1,1 til 1,3 | I10: Bly og Svovlsyre/destilleret vand
B11: t= tid [timer]
C13: Værdierne C, H og I er normalt oplyst på batteriet eller i databladet. Antag et batteri på 100 Ah₅ - hvor(₅) betyder 5 A afladestrøm, (C20) normværdi 20 timer afladetid og k = 1,3 fås:
B14: H1: | C14: Peukerts lov: t=H*(C/(I*H))ᵏ = | F14: =$H$20*(POWER(($D$20/($P$20*$H$20)),$L$20)) -> 20 | G14: timer | H14: kan omskrives til | J14: C1: | K14: Peukerts lov: I*t=C*(C/(I*H))ᵏ⁻¹ = | N14: =$D$20*(POWER(($D$20/($P$20*$H$20)),($L$20-1))) -> 100 | O14: Ah
C15: Det samme batteri hvor afladestrømmen er ændret til: | H15: =+P24 -> 20 | I15: A | J15: giver følgende data:
B16: H2: | C16: Peukerts lov: t=H*(C/(I*H))ᵏ = | F16: =$H$24*(POWER(($D$24/($P$24*$H$24)),$L$24)) -> 3.298769777 | G16: timer | H16: kan omskrives til | J16: C2: | K16: Peukerts lov: I*t=C*(C/(I*H))ᵏ⁻¹ = | N16: =$D$24*(POWER(($D$24/($P$24*$H$24)),($L$24-1))) -> 65.97539554 | O16: Ah
B18: C1 cellekapaciteten som funktion af forbruget på et | H18: =+N14 -> 100 | I18: Ah | J18: batteri | K18: med afladestrøm på | M18: =+P20 -> 5 | N18: A og | O18: =+F14 -> 20 | P18: timer afladetid
B19: Indsæt norm værdierne for batteriet, som skal beregnes i gule celler | J19: Batteritype vælg værdien k | N19: Her aflæses norm afladestrømmen
B20: C = Batterikapacitet | D20: 100 | E20: [Ah] | F20: H = Afladetid | H20: 20 | I20: [timer] | J20: Peukert konstant | L20: 1.3 | M20: [k] | N20: I = Afladestrøm | P20: =+ROUND(D20/H20,3) -> 5 | Q20: [A]
B22: C2 cellekapaciteten på det samme batteri med ændret aflæadestrøm | H22: =+N16 -> 65.97539554 | I22: Ah | J22: batteri | K22: med afladestrøm på | M22: =+P24 -> 20 | N22: A og | O22: =+F16 -> 3.298769777 | P22: timer afladetid
B23: Beregnede værdier for batteriet med ny afladestrøm | J23: Batteritype som overfor | N23: Herunder indsættes en ny afladestrøm
B24: C = Batterikapacitet | D24: =H24*P24 -> 65.97539554 | E24: [Ah] | F24: H = Afladetid | H24: =(D20*(D20/H20)^(L20-1))/P24^(L20) -> 3.298769777 | I24: [timer] | J24: Peukert konstant | L24: =+L20 -> 1.3 | M24: [k] | N24: I = Afladestrøm | P24: 20 | Q24: [A]
B25: Beregnede resultater indsat i diagram
B26: Afladnings strøm [A] | E26: =($W$26/10)*0.1 -> 1 | F26: =($W$26/10)*0.2 -> 2 | G26: =($W$26/10)*0.3 -> 3 | H26: =($W$26/10)*0.4 -> 4 | I26: =($W$26/10)*0.5 -> 5 | J26: =($W$26/10)*0.6 -> 6 | K26: =($W$26/10)*0.7 -> 7 | L26: =($W$26/10)*0.8 -> 8 | M26: =($W$26/10)*0.9 -> 9 | N26: =($W$26/10)*1 -> 10 | O26: =($W$26/10)*2 -> 20 | P26: =($W$26/10)*3 -> 30 | Q26: =($W$26/10)*4 -> 40 | R26: =($W$26/10)*5 -> 50 | S26: =($W$26/10)*6 -> 60 | T26: =($W$26/10)*7 -> 70 | U26: =($W$26/10)*8 -> 80 | V26: =($W$26/10)*9 -> 90 | W26: =+D20 -> 100
B27: Tid [h] | E27: =$H$20*(POWER(($D$20/(E26*$H$20)),$L$20)) -> 162.0656597 | F27: 65.81911022 | G27: 38.85378836 | H27: 26.730865 | I27: =$H$20*(POWER(($D$20/(I26*$H$20)),$L$20)) -> 20 | J27: =$H$20*(POWER(($D$20/(J26*$H$20)),$L$20)) -> 15.77954135 | K27: 12.91408228 | L27: 10.85610458 | M27: 9.314847283 | N27: 8.122523964 | O27: 3.298769777 | P27: 1.94730227 | Q27: 1.339716828 | R27: 1.002374467 | S27: 0.7908504677 | T27: 0.6472373175 | U27: 0.5440941021 | V27: 0.4668482541 | W27: 0.4070905315
B28: Peukerts korrigerede amp. Ip | E28: =E26^$L$20/($D$20/$H$20)^($L$20-1) -> 0.6170338627 | F28: 1.519315586 | G28: 2.573751601 | H28: 3.740993791 | I28: =I26^$L$20/($D$20/$H$20)^($L$20-1) -> 5 | J28: =J26^$L$20/($D$20/$H$20)^($L$20-1) -> 6.337319811 | K28: 7.743484809 | L28: 9.211407213 | M28: 10.73554906 | N28: 12.31144413 | O28: 30.31433133 | P28: 51.35309578 | Q28: 74.64263932 | R28: 99.76311575 | S28: 126.446154 | T28: 154.5028343 | U28: 183.7917368 | V28: 214.2023647 | W28: 245.6456052
B29: Total [Ah] tilgængelig | E29: =E26*E27 -> 162.0656597 | F29: 131.6382204 | G29: 116.5613651 | H29: 106.92346 | I29: =I26*I27 -> 100 | J29: =J26*J27 -> 94.6772481 | K29: 90.39857599 | L29: 86.84883661 | M29: 83.83362555 | N29: 81.22523964 | O29: 65.97539554 | P29: 58.41906811 | Q29: 53.58867313 | R29: 50.11872336 | S29: 47.45102806 | T29: 45.30661223 | U29: 43.52752816 | V29: 42.01634287 | W29: 40.70905315
B31: =+B26 -> Afladnings strøm [A] | E31: =+P24 -> 20 | G31: =+B27 -> Tid [h] | I31: =$H$20*(POWER(($D$20/(E31*$H$20)),$L$20)) -> 3.298769777 | K31: =+B28 -> Peukerts korrigerede amp. Ip | M31: =E31^$L$20/($D$20/$H$20)^($L$20-1) -> 30.31433133 | O31: =+B29 -> Total [Ah] tilgængelig | Q31: =E31*I31 -> 65.97539554
B59: =CONCATENATE(B60,", ",G60,", ",K60," og ",O60) -> Afladnings strøm [A], Tid [h], Peukerts korrigerede amp. Ip og Total [Ah] tilgængelig
B60: =+B31 -> Afladnings strøm [A] | E60: =+E31 -> 20 | G60: =+G31 -> Tid [h] | I60: =+I31 -> 3.298769777 | K60: =+K31 -> Peukerts korrigerede amp. Ip | M60: =+M31 -> 30.31433133 | O60: =+O31 -> Total [Ah] tilgængelig | Q60: =+Q31 -> 65.97539554
B89: Se også disse website | H89: If you want the password to the spreadsheet, send me an email.
B90: https://en.wikipedia.org/wiki/Automotive_battery
B91: https://en.wikipedia.org/wiki/Deep_cycle_battery | H91: Udarbejdet af Jørgen Walter ©
B92: https://en.wikipedia.org/wiki/Peukert%27s_law
B93: https://en.wikipedia.org/wiki/VRLA_battery
B94: https://en.wikipedia.org/wiki/Battery_electric_vehicle
B95: http://www.smartgauge.co.uk/peukert_depth.html | H95: www.walter-lystfisker.dk
B96: https://en.wikipedia.org/wiki/Coulomb
B97: https://en.wikipedia.org/wiki/Rechargeable_battery | H97: COPYRIGHT © 2014
B100: walter | U100: Reg. No. 1275

Sheet Log
B1: En matematisk analyse bagved Peukerts ligning (Peukerts lov)
B2: Følgende definitioner anvendes | E2: Følgende k værdier anvendes
B3: C = Batterikapacitet [A*h] | E3: AGM fra 1,05 til 1,15 | H3: Absorbed Glass Mat | L3: Default data input for brugeren
B4: H = Afladetid [timer] | E4: GEL fra 1,1 til 1,25 | H4: Gele
B5: k = Peukert konstant | E5: VRLA fra 1,2 til 1,6 | H5: Vedligeholdelsesfrit batteri
B6: I = Afladestrøm [A] | E6: Bly/Syre fra 1,1 til 1,3 | H6: Bly og Svovlsyre/destilleret vand
B7: t= tid [timer] | R7: Indsæt dine værdier
R8: H1 | S8: C1
B9: Afladetid 1 (H1) | C9: =+Info!H20 -> 20 | D9: timer | F9: Capacity (C1) | G9: =+Info!D20 -> 100 | H9: Ah | I9: =+Info!P20 -> 5 | J9: [A] | K9: t1=C*(C/H)ᵏ⁻¹/Iᵏ = | L9: =($G$9*($G$9/$C$9)^($F$13-1))/$I$9^$F$13 -> 20 | M9: timer | N9: afladning med | O9: =+I9 -> 5 | P9: =+J9 -> [A] | R9: 20 | S9: 12
R10: H2 | S10: C2
B11: Afladetid 2 (H2) | C11: =+Info!H24 -> 3.298769777 | D11: timer | F11: Capacity (C2) | G11: =+Info!D24 -> 65.97539554 | H11: Ah | I11: =+Info!P24 -> 20 | J11: =+J9 -> [A] | K11: t2=C*(C/H)ᵏ⁻¹/Iᵏ = | L11: =($G$9*($G$9/$C$9)^($F$13-1))/$I$11^$F$13 -> 3.298769777 | M11: timer | N11: afladning med | O11: =+I11 -> 20 | P11: =+P9 -> [A] | R11: 10.3 | S11: 10.3
B13: Peukert's konstant = k | C13: Log (H2/H1) | F13: =((LOG10(C11))-(LOG10(C9)))/((LOG10(G9/C9))-(LOG10(G11/C11))) -> 1.3 | K13: Peukert's konstant = k | N13: =((LOG10(R11))-(LOG10(R9)))/((LOG10(S9/R9))-(LOG10(S11/R11))) -> 1.299050689 | O13: for dit batteri
C14: Log (C1/H1)-Log(C2/H2)
B16: Antag at et batteridatablad viser en kapacitet på 100 Ah og 20 timer eller 65,98 Ah og 3,30 timer, dvs. 100 Ah @ 20 timer eller 65,98 Ah @ 3,30 timer, så taler vi om det samme batteri.
B17: Forskellen ligger i, at det første sæt data aflader med 5 A, og det andet sæt data med 20 A. Jeg har valgt disse værdier, efter som jeg har beregnet dem på Ark Info, så det gør kontrollen med formlen lettere.
B18: Disse tal svare til et batteri normeret til 100 Ah, 5 A afladestrøm ved 20 timer med en Peukerts konstant k på 1,3. Det er benævnt som batteriets "omdrejnings" punkt. Data på batteriet er listet således 100 Ah₅.
B19: [ ₅ betyder 5 A og normtiden (20) er vedtaget til 20 timer, så 5*20=100. Peukerts konstant opgives sjældent]
B21: Strøm højere end 5 A vil medføre kortere "batteritid" end en simpel ampere*tid beregning ville indikere. (Vi ser bort fra selvafladning i batteriet)
B22: Strøm lavere end 5 A vil medføre længere "batteritid" end en simpel ampere*tid beregning ville indikere. (Vi ser bort fra selvafladning i batteriet)
B23: Lad os kalde dette batteriets "omdrejnings" punktet ved 5 A.
B25: Anvendes den modificerede ligning [t = C* (C / H)ᵏ⁻¹ / Iᵏ] findes batteriets "omdrejnings" punktet til at være normværdien af afladestrømmen for det valgte batteri her: | P25: I | Q25: =+Info!P20 -> 5 | R25: =+P9 -> [A]
B26: som svarer til batteriets kapacitet, divideret med afladetiden dvs. C /H. På grund af dette vil Peukerts korrigerede ampere (IP) være forskellig i hvert enkelt tilfælde her: | P26: Ip | Q26: =+Info!M31 -> 30.31433133 | R26: =+R25 -> [A]
B27: men den endelige batterikapacitet beregnet med begge ligninger vil være identiske, fordi batteriet kapacitet er blevet angivet forskelligt i hvert enkelt tilfælde.
B29: Batterikapacitet 1 = H1 * Afladestrøm 1 = | D29: =C9*I9 -> 100 | F29: [Ah] | H29: Batterikapacitet 2 = H2 * Peukerts korrigerede afladestrøm = | N29: =C11*Q26 -> 100 | O29: [Ah]
B31: Forhåbentligt et det nu klart, hvorfor Peukerts ligning den normale [t=C/Iᵏ], ikke kan bruges med normale batteri data.
B32: Man kan enten bruge den modificerede udgave af ligningen [t = C* (C / H)ᵏ⁻¹ / Iᵏ]. Som i sagens natur korrigerer for det specifikke batteri
B33: med en afladningsstrøm som ikke er 1 A, hvor man ellers kunne bruge den normale version t = C / Iᵏ.
B35: Hvad betyder så dette? Oftest indeholder producentens manual eller websted ikke Peukerts konstant k for batteriet.
B36: Men der er ofte en graf, der viser afladningstid mod afladningsstrøm. Eller undertiden en tabel, der viser tilgængelige afladningstider ved forskellige afladningsstrømme.
B37: Denne information kan bruges til at beregne Peukerts konstant for batteritype.
B38: Alt hvad der behøves er 2 afladningstider og 2 afladningsstrømme. Disse kan enten aflæses direkte i tabellen eller fra grafen.
F40: If you want the password to the spreadsheet, send me an email.
F42: Udarbejdet af Jørgen Walter ©
F46: www.walter-lystfisker.dk
F48: COPYRIGHT © 2014
B50: walter | U50: Reg. No. 1275
